bitfinex-derivatives/quotes_SOLF0:USTF0_20260227
["timestamp","ask_amount","ask_price","bid_price","bid_amount"]
[1772190180281,14.01,84.754,84.722,12.34009283]
[1772190181178,12.26223893,84.772,84.74,10.6203]
[1772190181383,12.21375118,84.799,84.741,12.34009283]
[1772190181585,12.21375118,84.799,84.751,12.34009283]
[1772190181887,14.81165785,84.81,84.751,12.34009283]
[1772190182987,2.59747737,84.79,84.739,12.34009283]
[1772190183396,12.11401325,84.799,84.739,12.34009283]
[1772190184290,10.6132,84.798,84.76,10.6178]
[1772190185285,10.6121,84.807,84.762,10.6175]
[1772190185494,12.09810033,84.814,84.762,12.34009283]
[1772190186993,10.612,84.808,84.762,22.95759283]
[1772190187788,22.67328038,84.808,84.762,22.95759283]
[1772190188182,10.6124,84.804,84.762,22.95759283]
[1772190190590,10.6115,84.811,84.769,12.46744085]
[1772190192488,11.91569594,84.832,84.769,12.46744085]
[1772190193791,10.611,84.815,84.776,10.6158]
[1772190194485,10.611,84.815,84.732,21.2426]
[1772190194486,11.86041311,84.808,84.755,12.46744085]
[1772190194689,11.86041311,84.806,84.714,12.46744085]
[1772190195088,11.86041311,84.806,84.749,12.46744085]
[1772190195688,11.83138626,84.801,84.756,10.6183]
[1772190195992,11.83138626,84.801,84.714,12.46744085]
[1772190196293,11.8318163,84.799,84.714,12.46744085]
[1772190196689,10.6149,84.784,84.741,10.6202]
[1772190196888,22.64966122,84.784,84.741,10.6202]
[1772190198185,12.03476122,84.784,84.718,12.46744085]
[1772190198392,12.00370164,84.779,84.718,12.46744085]
[1772190199095,10.6181,84.759,84.718,12.46744085]
[1772190199393,12.00370164,84.779,84.718,12.46744085]
[1772190199896,10.618,84.76,84.718,12.46744085]
[1772190201595,10.6168,84.769,84.718,23.09044085]
[1772190201894,10.6168,84.769,84.719,12.46744085]
[1772190202884,10.6168,84.769,84.722,12.46744085]
[1772190203700,10.6178,84.761,84.722,12.46744085]
[1772190204689,12.17405954,84.769,84.723,10.6225]
[1772190205094,12.17405954,84.769,84.724,12.46744085]
[1772190205299,2.59851142,84.76,84.724,12.46744085]
[1772190205794,10.6182,84.758,84.724,12.46744085]
[1772190206000,2.59851142,84.74,84.681,12.46744085]
[1772190206193,2.59851142,84.73,84.681,12.46744085]
[1772190206893,2.59851142,84.73,84.69,12.46744085]
[1772190207297,13.21891142,84.74,84.69,12.46744085]
[1772190207803,2.59851142,84.74,84.696,12.46744085]
[1772190208797,2.59851142,84.73,84.696,12.46744085]
[1772190210601,2.59851142,84.74,84.696,12.46744085]
[1772190210900,2.59851142,84.74,84.697,10.6256]
[1772190211101,2.59851142,84.74,84.698,12.46744085]
[1772190212594,2.59851142,84.74,84.7,10.6253]
[1772190212795,2.59851142,84.76,84.701,12.46744085]
[1772190213292,2.59851142,84.76,84.721,12.46744085]
[1772190213492,2.59851142,84.77,84.721,12.46744085]
[1772190214201,2.59851142,84.77,84.73,12.46744085]
[1772190214791,10.6169,84.768,84.73,12.46744085]
[1772190216601,11.82634595,84.759,84.697,12.46744085]
[1772190216805,2.59851142,84.73,84.69,12.46744085]
[1772190217000,11.82634595,84.736,84.69,12.46744085]
[1772190217400,2.59851142,84.74,84.69,12.46744085]
[1772190218405,2.59851142,84.76,84.701,12.42772789]
[1772190218602,10.6182,84.758,84.717,12.42772789]
[1772190221597,10.6189,84.752,84.717,12.42772789]
[1772190222505,10.618,84.759,84.717,23.05082789]
[1772190222808,2.59870349,84.77,84.718,11.61636554]
[1772190223110,10.6168,84.769,84.73,10.6215]
[1772190223914,10.6168,84.769,84.732,10.6213]
[1772190224109,2.59870349,84.77,84.733,11.61636554]
[1772190224999,2.59870349,84.77,84.735,10.6209]
[1772190225208,10.6159,84.776,84.735,10.6209]
[1772190227208,10.6169,84.768,84.733,11.61636554]
[1772190229004,12.0310374,84.78,84.736,10.6208]
[1772190230306,12.0310374,84.78,84.737,11.61636554]
[1772190230609,10.6144,84.788,84.74,11.61636554]
[1772190230806,11.90842972,84.795,84.74,11.61636554]
[1772190231208,11.77582219,84.813,84.748,11.61636554]
[1772190231805,11.76525466,84.804,84.734,11.61636554]
[1772190232005,11.76536477,84.799,84.734,11.61636554]
[1772190232311,10.615,84.783,84.738,10.6205]
[1772190232507,11.75493307,84.786,84.739,11.61636554]
[1772190232704,11.75493307,84.786,84.691,11.61636554]
[1772190233103,11.75493307,84.786,84.729,11.61636554]
[1772190233500,11.51772463,84.801,84.729,11.61636554]
[1772190233700,11.51772463,84.801,84.76,10.6178]
[1772190234405,10.6117,84.809,84.765,10.6171]
[1772190234610,11.50773209,84.816,84.761,11.61636554]
[1772190235506,10.6126,84.803,84.762,10.6175]
[1772190236411,10.6126,84.803,84.762,22.23386554]
[1772190236603,10.6116,84.811,84.767,22.23326554]
[1772190236810,11.50773209,84.816,84.768,11.61636554]
[1772190238013,10.611,84.815,84.769,10.6167]
[1772190238213,11.62455871,84.815,84.731,11.61636554]
[1772190238409,11.62455871,84.815,84.716,21.2465]
[1772190238410,11.62455871,84.815,84.758,11.61636554]
[1772190239514,10.6124,84.804,84.761,10.6177]
[1772190240108,11.62455871,84.815,84.762,11.61636554]
[1772190240508,11.62455871,84.815,84.746,11.61636554]
[1772190240709,11.62455871,84.815,84.7,6.49447487]
[1772190240710,11.62793506,84.799,84.743,10.6199]
[1772190241620,11.62793506,84.799,84.743,22.23626554]
[1772190241917,10.6144,84.788,84.743,22.23626554]
[1772190242822,10.6153,84.781,84.743,22.23626554]
[1772190243714,10.6153,84.781,84.743,11.61636554]
[1772190244217,10.6162,84.773,84.736,10.6208]
[1772190244420,22.13906646,84.773,84.729,10.6217]
[1772190244617,11.52286646,84.773,84.728,11.61636554]
[1772190245320,10.6165,84.771,84.728,22.23816554]
[1772190246922,11.53569593,84.764,84.721,10.6227]
[1772190247322,2.59868577,84.76,84.721,10.6227]
[1772190248023,2.59868577,84.76,84.715,11.61636554]
[1772190248820,2.59868577,84.77,84.731,11.61636554]
[1772190250015,2.59868577,84.77,84.733,11.70177745]
[1772190250221,10.616,84.776,84.733,11.70177745]
[1772190251025,2.59868577,84.78,84.736,11.70177745]
[1772190251229,11.46741562,84.798,84.741,11.70177745]
[1772190251427,2.59868577,84.79,84.741,11.70177745]
[1772190251830,2.59868577,84.78,84.741,11.70177745]
[1772190252126,2.59868577,84.77,84.711,11.70177745]
[1772190252525,2.59868577,84.77,84.734,10.621]
[1772190255528,13.54173771,84.77,84.734,10.621]
[1772190255732,2.59868577,84.76,84.734,10.621]
[1772190255929,2.59868577,84.76,84.727,10.6219]
[1772190257931,2.59868577,84.75,84.725,11.70177745]
[1772190258526,2.59868577,84.75,84.72,10.6228]
[1772190260033,2.59868577,84.75,84.712,10.6238]
[1772190260331,2.59868577,84.75,84.713,11.70177745]
[1772190261025,2.59868577,84.75,84.717,10.6232]
[1772190261424,2.59868577,84.75,84.717,22.32497745]
[1772190261821,2.59868577,84.75,84.703,11.70177745]
[1772190261822,2.59868577,84.74,84.703,11.70177745]
[1772190262027,2.59868577,84.73,84.689,11.70177745]
[1772190262532,2.59868577,84.75,84.691,11.70177745]
[1772190262826,2.59868577,84.75,84.712,10.6237]
[1772190263027,2.59868577,84.75,84.713,11.70177745]
[1772190264928,2.59868577,84.75,84.714,10.6235]
[1772190265235,2.59868577,84.75,84.715,11.70177745]
[1772190266931,2.59868577,84.75,84.716,10.6233]
[1772190267235,2.59868577,84.76,84.717,11.70177745]
[1772190268338,2.59868577,84.75,84.717,11.70177745]
[1772190268628,2.59868577,84.75,84.717,22.32487745]
[1772190269534,2.59868577,84.77,84.725,11.70177745]
[1772190270434,2.59868577,84.74,84.691,11.70177745]
[1772190271936,2.59868577,84.74,84.705,10.6247]
[1772190272130,2.59868577,84.75,84.706,11.70177745]
[1772190272334,2.59868577,84.76,84.706,11.70177745]
[1772190272732,2.59868577,84.74,84.706,11.70177745]
[1772190273626,10.2587083,84.747,84.706,11.70177745]
[1772190274540,2.59868577,84.75,84.706,11.70177745]
[1772190275042,2.59868577,84.75,84.712,10.6238]
[1772190275635,10.6186,84.755,84.713,11.70177745]
[1772190275833,10.6186,84.755,84.715,10.6234]
[1772190276033,10.6186,84.755,84.715,22.32517745]
[1772190276233,10.6186,84.755,84.718,10.6231]
[1772190276431,2.59868577,84.75,84.702,11.70177745]
[1772190276630,10.6193,84.749,84.702,11.70177745]
[1772190277336,2.59868577,84.75,84.711,10.6239]
[1772190277630,2.59868577,84.75,84.711,22.46346409]
[1772190277836,2.59868577,84.75,84.712,11.83956409]
[1772190278537,2.59868577,84.78,84.721,11.83956409]
[1772190278736,2.59868577,84.79,84.731,11.83956409]
[1772190278934,2.59868577,84.78,84.731,11.83956409]
[1772190280042,9.67312275,84.779,84.731,11.83956409]
[1772190280943,20.28872275,84.779,84.736,22.47312572]
[1772190281336,2.59751594,84.79,84.737,11.85232572]
[1772190282339,10.6143,84.789,84.745,10.6197]
[1772190284939,20.13663787,84.789,84.745,10.6197]
[1772190285646,20.13663787,84.789,84.75,11.85232572]
[1772190287846,2.59751594,84.79,84.752,11.85232572]
[1772190288045,10.6134,84.796,84.752,11.85232572]
[1772190289049,10.6134,84.796,84.757,10.6181]
[1772190289251,2.59751594,84.79,84.752,11.85232572]
[1772190289652,2.59751594,84.79,84.754,10.6186]
[1772190289854,9.46453463,84.796,84.754,10.6186]
[1772190291056,10.614,84.791,84.754,10.6186]
[1772190291254,2.59751594,84.79,84.754,10.6186]
[1772190292860,10.6143,84.788,84.752,11.85232572]
[1772190294157,10.6136,84.794,84.753,11.85232572]
[1772190295263,20.03735856,84.794,84.753,11.85232572]
[1772190295959,20.03735856,84.794,84.757,10.6181]
[1772190301067,9.17212573,84.787,84.741,11.85232572]
[1772190301363,11.74508674,84.77,84.728,11.85232572]
[1772190301666,2.59751594,84.78,84.728,11.85232572]
[1772190301867,10.6155,84.779,84.728,11.85232572]
[1772190302068,9.14914539,84.779,84.728,11.85232572]
[1772190302461,2.59751594,84.77,84.728,11.85232572]
[1772190302663,9.12461639,84.759,84.715,11.85232572]
[1772190303064,11.86695829,84.75,84.691,11.85232572]
[1772190303263,9.26944235,84.749,84.691,11.85232572]
[1772190304265,2.59751594,84.78,84.722,11.85232572]
[1772190304469,9.24675789,84.79,84.741,11.85232572]
[1772190304669,2.59751594,84.8,84.741,11.85232572]
[1772190304970,9.74141196,84.799,84.741,11.85232572]
[1772190305170,9.74141196,84.798,84.758,10.618]
[1772190305366,9.74141196,84.797,84.759,11.85232572]
[1772190305670,22.31747582,84.8,84.759,11.85232572]
[1772190305872,9.10853082,84.799,84.759,11.85232572]
[1772190306271,9.10853082,84.799,84.741,11.85232572]
[1772190306868,10.6137,84.793,84.749,10.6192]
[1772190307075,9.20855192,84.789,84.741,11.85232572]
[1772190307873,9.20855192,84.789,84.741,22.47242572]
[1772190308572,9.20855192,84.789,84.744,11.85232572]
[1772190309966,9.20855192,84.789,84.752,10.6188]
[1772190310273,9.20855192,84.789,84.744,11.85232572]
[1772190310574,9.20855192,84.789,84.752,10.6188]
[1772190311476,10.6133,84.797,84.758,21.70398136]
[1772190313667,2.59751594,84.79,84.75,10.6191]
[1772190314071,2.59751594,84.79,84.745,11.08588136]
[1772190314977,2.59751594,84.79,84.756,10.6183]
[1772190315181,9.04936233,84.811,84.757,11.08588136]
[1772190315473,2.59751594,84.8,84.757,11.08588136]
[1772190315672,2.59751594,84.8,84.764,10.6173]
[1772190316076,2.59751594,84.8,84.764,21.70318136]
[1772190316269,2.59751594,84.8,84.77,10.6165]
[1772190316469,2.59751594,84.8,84.764,11.08588136]
[1772190317272,10.6118,84.809,84.764,11.08588136]
[1772190317977,10.6107,84.817,84.767,11.08588136]
[1772190318173,8.90646216,84.816,84.767,11.08588136]
[1772190318472,2.59751594,84.81,84.767,11.08588136]
[1772190318675,2.59751594,84.8,84.767,11.08588136]
[1772190319679,8.88621608,84.809,84.768,21.70268136]
[1772190319879,2.59751594,84.81,84.75,2.59751594]
[1772190319880,2.59751594,84.81,84.769,11.08588136]
[1772190320180,2.59751594,84.81,84.771,10.6164]
[1772190321475,8.72767939,84.809,84.771,10.6164]
[1772190321681,2.59751594,84.8,84.757,11.08588136]
[1772190322974,2.59751594,84.8,84.763,10.6174]
[1772190323778,14.33833767,84.848,84.74,2.59751594]
[1772190323779,2.59751594,84.82,84.771,11.08588136]
[1772190324078,21.51218571,84.874,84.74,21.2407]
[1772190324079,2.59751594,84.8,84.741,11.08588136]
[1772190324473,2.59751594,84.8,84.759,11.08588136]
[1772190324679,2.59751594,84.81,84.759,11.08588136]
[1772190325078,2.59751594,84.82,84.772,11.08588136]
[1772190325579,2.59751594,84.82,84.779,21.70128136]
[1772190325978,2.59751594,84.82,84.78,11.08588136]
[1772190326280,10.6094,84.828,84.78,11.08588136]
[1772190326779,2.59751594,84.81,84.78,11.08588136]
[1772190328984,13.20921594,84.81,84.767,11.08588136]
[1772190330884,13.20921594,84.81,84.768,10.6168]
[1772190331481,13.20921594,84.81,84.772,10.6163]
[1772190331482,2.59751594,84.81,84.772,10.6163]
[1772190331679,2.59751594,84.81,84.772,21.70218136]
[1772190331879,2.59751594,84.81,84.773,11.08588136]
[1772190333180,2.59751594,84.81,84.774,10.616]
[1772190333385,2.59751594,84.81,84.775,11.08588136]
[1772190333983,2.59751594,84.81,84.777,10.6157]
[1772190334188,2.59751594,84.81,84.778,11.08588136]
[1772190335486,2.59751594,84.81,84.779,10.6154]
[1772190336487,15.78,84.826,84.784,11.08588136]
[1772190336885,2.59751594,84.82,84.76,2.59751594]
[1772190337285,2.59751594,84.82,84.792,10.6138]
[1772190337589,15.78,84.826,84.792,10.6138]
[1772190339080,2.59751594,84.8,84.761,10.62571733]
[1772190339287,2.59751594,84.79,84.761,10.62571733]
[1772190339586,2.59751594,84.79,84.746,10.62571733]
[1772190339981,2.59751594,84.79,84.749,11.08430843]
[1772190340189,2.59751594,84.8,84.749,11.08430843]
[1772190341090,2.59751594,84.79,84.749,11.08430843]
[1772190341890,2.59751594,84.79,84.754,10.6185]
[1772190342900,35.41,84.816,84.749,11.08430843]
[1772190343099,13.15571557,84.82,84.761,11.08430843]
[1772190343295,2.59282195,84.86,84.808,10.6117]
[1772190343495,2.59282195,84.84,84.801,11.08430843]
[1772190343696,2.59282195,84.83,84.801,11.08430843]
[1772190343997,2.59282195,84.83,84.771,11.08430843]
[1772190344194,2.59282195,84.82,84.785,11.08430843]
[1772190345288,2.59282195,84.82,84.788,10.6143]
[1772190345496,2.59282195,84.83,84.789,11.08430843]
[1772190345897,10.55819963,84.843,84.8,10.6128]
[1772190346097,2.59282195,84.85,84.801,11.08430843]
[1772190346693,2.59282195,84.86,84.814,11.08430843]
[1772190348000,2.59282195,84.85,84.814,11.08430843]
[1772190348400,2.59282195,84.86,84.816,11.08430843]
[1772190348904,10.55819963,84.862,84.816,11.08430843]
[1772190348905,2.59282195,84.85,84.816,11.08430843]
[1772190357293,10.55819963,84.849,84.806,10.612]
[1772190357499,2.59282195,84.84,84.802,11.08430843]
[1772190357699,2.59282195,84.84,84.803,21.69670843]
[1772190357898,2.59282195,84.84,84.804,11.08430843]
[1772190359403,10.55819963,84.839,84.795,10.6134]
[1772190359598,10.55819963,84.839,84.796,11.08430843]
[1772190359803,2.59282195,84.84,84.796,11.08430843]
[1772190360902,10.55819963,84.839,84.78,2.59282195]
[1772190361102,10.55819963,84.829,84.781,11.08430843]
[1772190361309,2.59282195,84.81,84.765,11.08430843]
[1772190361708,2.59282195,84.79,84.741,11.08430843]
[1772190362306,2.59282195,84.78,84.746,11.08430843]
[1772190362906,2.59282195,84.76,84.732,11.08430843]
[1772190363302,2.59282195,84.76,84.688,21.2537]
[1772190363303,2.59282195,84.75,84.716,11.08430843]
[1772190363503,2.59282195,84.74,84.704,10.6248]
[1772190363707,2.59282195,84.74,84.698,11.08430843]
[1772190364309,2.59282195,84.74,84.7,11.08430843]
[1772190365212,10.55819963,84.751,84.7,11.08430843]
[1772190369111,10.55819963,84.767,84.703,11.08430843]
[1772190369710,10.55819963,84.765,84.703,11.08430843]
[1772190369912,11.24981105,84.749,84.688,10.92551435]
[1772190370511,11.24981105,84.747,84.689,10.6267]
[1772190370711,11.24981105,84.747,84.69,10.92551435]
[1772190372617,10.6198,84.745,84.69,10.92551435]
[1772190372817,11.24981105,84.744,84.69,10.92551435]
[1772190373414,11.24981105,84.74,84.69,10.92551435]
[1772190375915,10.6206,84.738,84.69,10.92551435]
[1772190376115,11.24981105,84.737,84.69,10.92551435]
[1772190376417,11.24981105,84.751,84.692,10.92551435]
[1772190376618,11.96,84.736,84.692,10.92551435]
[1772190376925,453.84675931,84.786,84.692,10.92551435]
[1772190376926,11.24981105,84.763,84.692,10.92551435]
[1772190377723,11.24981105,84.763,84.66,6.49887771]
[1772190377724,11.24981105,84.757,84.686,10.92551435]
[1772190378615,11.24981105,84.742,84.689,10.6267]
[1772190378819,11.24981105,84.742,84.689,21.55221435]
[1772190379016,11.24981105,84.742,84.65,62.0]
[1772190379017,11.24981105,84.742,84.69,10.92551435]
[1772190379413,11.24981105,84.757,84.704,10.6248]
[1772190379617,11.24981105,84.757,84.705,10.92551435]
[1772190380924,21.86911105,84.749,84.705,10.92551435]
[1772190381121,11.24981105,84.749,84.705,10.92551435]
[1772190382121,21.86901105,84.749,84.705,10.92551435]
[1772190382519,11.24981105,84.749,84.705,10.92551435]
[1772190383024,21.86901105,84.749,84.705,10.92551435]
[1772190383614,11.24981105,84.749,84.706,10.6246]
[1772190383818,11.24981105,84.764,84.705,10.92551435]
[1772190384524,11.24981105,84.762,84.705,10.92551435]
[1772190385124,11.24981105,84.75,84.661,10.92551435]
[1772190386224,23.75981105,84.763,84.709,10.92551435]
[1772190386928,11.24981105,84.761,84.709,10.92551435]
[1772190387225,2.59911583,84.75,84.709,10.92551435]
[1772190387430,11.24981105,84.759,84.709,10.92551435]
[1772190387627,12.51,84.763,84.718,10.92551435]
[1772190387834,12.51,84.763,84.675,165.333]
[1772190387835,453.84675931,84.786,84.731,10.92551435]
[1772190388235,2.59911583,84.78,84.74,10.92551435]
[1772190388431,453.84675931,84.786,84.74,10.92551435]
[1772190388628,2.59911583,84.77,84.725,10.92551435]
[1772190389231,2.59911583,84.77,84.733,10.6212]
[1772190389430,10.6159,84.776,84.733,10.6212]
[1772190390436,2.59911583,84.77,84.733,10.6212]
[1772190391629,11.24981105,84.779,84.681,21.2555]
[1772190391630,11.24981105,84.779,84.735,21.54641435]
[1772190391827,2.59911583,84.79,84.736,10.92551435]
[1772190392334,2.59911583,84.79,84.748,10.6193]
[1772190392636,2.59911583,84.78,84.736,10.92551435]
[1772190392836,13.84892688,84.78,84.738,10.92551435]
[1772190393343,2.59911583,84.78,84.738,10.92551435]
[1772190394340,21.86551105,84.778,84.738,10.92551435]
[1772190394743,11.24981105,84.777,84.732,10.6213]
[1772190395938,2.59911583,84.76,84.71,10.92551435]
[1772190396143,13.84892688,84.76,84.71,10.92551435]
[1772190396638,2.59911583,84.76,84.723,10.92551435]
[1772190396836,10.617,84.767,84.723,10.92551435]
[1772190397044,2.59911583,84.76,84.723,10.92551435]
[1772190397345,10.6167,84.769,84.725,10.92551435]
[1772190397546,2.59911583,84.77,84.725,10.92551435]
[1772190398041,10.6168,84.769,84.726,22.01325141]
[1772190398642,2.59911583,84.76,84.718,10.6231]
[1772190399634,2.59911583,84.75,84.713,11.39125141]
[1772190399837,2.59911583,84.74,84.698,11.39125141]
[1772190400236,10.6205,84.739,84.698,11.39125141]
[1772190402146,2.59911583,84.73,84.698,11.39125141]
[1772190403046,13.60430356,84.75,84.702,10.6767337]
[1772190403245,13.60410909,84.75,84.702,10.6767337]
[1772190403748,2.59892136,84.75,84.702,10.6767337]
[1772190404049,2.59892136,84.75,84.712,10.6237]
[1772190404248,10.6185,84.756,84.712,10.6237]
[1772190404750,2.59892136,84.75,84.712,10.6237]
[1772190405446,2.59892136,84.76,84.713,10.6767337]
[1772190405646,10.69674815,84.782,84.713,10.6767337]
[1772190405647,2.59892136,84.77,84.713,10.6767337]
[1772190406149,2.59892136,84.76,84.713,10.6767337]
[1772190406946,2.59892136,84.76,84.727,10.6219]
[1772190407138,2.59892136,84.75,84.713,10.6767337]
[1772190407545,2.59892136,84.75,84.714,10.6235]
[1772190407847,2.59892136,84.75,84.714,10.6767337]
[1772190408051,11.28859966,84.759,84.714,10.6767337]
[1772190408948,11.28859966,84.759,84.72,10.6228]
[1772190409143,11.28859966,84.759,84.714,10.6767337]
[1772190409348,2.59892136,84.76,84.714,10.6767337]
[1772190410845,10.6181,84.759,84.722,10.6225]
[1772190411152,2.59892136,84.77,84.714,10.6767337]
[1772190411653,2.59892136,84.76,84.714,10.6767337]
[1772190412955,2.59892136,84.76,84.728,10.6219]
[1772190413142,2.59892136,84.76,84.714,10.6767337]
[1772190413955,10.6181,84.758,84.721,10.6227]
[1772190414350,13.88752102,84.75,84.7,10.6767337]
[1772190414554,13.88752102,84.75,84.712,10.6238]
[1772190414555,10.6194,84.748,84.712,10.6238]
[1772190416259,2.59892136,84.74,84.712,10.6238]
[1772190416755,2.59892136,84.74,84.705,10.6246]
[1772190416955,2.59892136,84.73,84.7,10.6767337]
[1772190417156,2.59892136,84.73,84.672,10.6767337]
[1772190417358,2.59892136,84.73,84.688,21.3036337]
[1772190418156,2.59892136,84.73,84.69,10.6266]
[1772190418951,2.59892136,84.72,84.689,10.6767337]
[1772190419158,2.59892136,84.71,84.675,10.6767337]
[1772190420058,2.59892136,84.72,84.675,10.6767337]
[1772190420253,10.6221,84.726,84.675,10.6767337]
[1772190420958,10.6221,84.726,84.682,10.6275]
[1772190421460,2.59892136,84.73,84.694,10.626]
[1772190421657,2.59892136,84.74,84.695,10.6767337]
[1772190422459,2.59892136,84.73,84.697,10.6257]
[1772190424663,2.59892136,84.72,84.695,10.6767337]
[1772190425258,2.59892136,84.73,84.695,10.6767337]
[1772190425859,2.59892136,84.73,84.695,21.3026337]
[1772190426061,2.59892136,84.73,84.696,10.6767337]
[1772190427962,10.6217,84.729,84.696,10.6767337]
[1772190430063,2.59892136,84.73,84.696,10.6767337]
[1772190430269,2.59892136,84.75,84.696,10.6767337]
[1772190430469,2.59892136,84.74,84.696,10.6767337]
[1772190430969,11.16135175,84.749,84.696,10.6767337]
[1772190431364,11.16135175,84.749,84.704,11.2306273]
[1772190431965,11.16135175,84.749,84.709,21.8548273]
[1772190432164,11.16135175,84.749,84.71,11.2306273]
[1772190432970,11.16135175,84.749,84.711,10.624]
[1772190433367,2.59892136,84.77,84.712,11.2306273]
[1772190434576,2.59892136,84.77,84.725,11.2306273]
[1772190434776,13.76027311,84.77,84.725,11.2306273]
[1772190435769,10.6175,84.763,84.725,11.2306273]
[1772190437077,24.37687311,84.77,84.727,11.2306273]
[1772190440477,10.6171,84.766,84.729,10.6217]
[1772190440880,10.6171,84.766,84.729,21.8523273]
[1772190441078,10.6187,84.754,84.729,11.2306273]
[1772190441284,10.6187,84.754,84.714,11.2306273]
[1772190441683,10.6177,84.761,84.714,11.2306273]
[1772190442880,10.6177,84.761,84.721,10.6227]
[1772190443084,10.6177,84.761,84.722,11.2306273]
[1772190444387,11.16135175,84.759,84.712,21.8544273]
[1772190444587,459.11184668,84.774,84.673,21.2573]
[1772190444588,11.16135175,84.749,84.699,11.2306273]
[1772190445987,10.6194,84.748,84.708,21.8549273]
[1772190446186,2.59892136,84.75,84.709,11.2306273]
[1772190446382,2.59892136,84.76,84.709,11.2306273]
[1772190446686,13.76027311,84.76,84.709,21.8547273]
[1772190447190,10.6185,84.755,84.718,10.6231]
[1772190447387,11.16135175,84.759,84.706,11.2306273]
[1772190447585,11.16135175,84.769,84.711,11.2306273]
[1772190447784,10.6188,84.753,84.717,10.6232]
[1772190447984,13.76027311,84.76,84.717,11.2306273]
[1772190449000,24.37817311,84.76,84.723,10.6225]
[1772190450294,2.59892136,84.77,84.726,11.2306273]
[1772190450793,10.6155,84.779,84.736,11.2306273]
[1772190450993,2.59892136,84.78,84.736,11.2306273]
[1772190451290,13.76027311,84.78,84.736,11.2306273]
[1772190451790,2.59892136,84.77,84.736,11.2306273]
[1772190451993,10.6169,84.768,84.736,11.2306273]
[1772190452985,2.59892136,84.77,84.736,11.2306273]
[1772190454092,2.59892136,84.77,84.737,10.6207]
[1772190456194,2.59892136,84.77,84.74,21.8509273]
[1772190456591,13.76027311,84.78,84.741,11.2306273]
[1772190457290,2.59892136,84.78,84.746,11.2306273]
[1772190457491,11.16135175,84.808,84.746,11.2306273]
[1772190457691,2.59892136,84.79,84.746,11.2306273]
[1772190458897,13.21182136,84.8,84.754,11.16615069]
[1772190459892,2.59892136,84.78,84.74,10.38767885]
[1772190460289,10.45365197,84.789,84.74,10.38767885]
[1772190461892,21.06795197,84.789,84.748,10.6193]
[1772190465299,21.06795197,84.789,84.748,21.00697885]
[1772190465699,10.45365197,84.789,84.758,10.618]
[1772190465898,2.59673387,84.79,84.758,10.618]
[1772190466502,2.59673387,84.79,84.758,21.00567885]
[1772190466698,10.613,84.799,84.763,10.6174]
[1772190466900,2.59673387,84.8,84.763,10.6174]
[1772190467903,2.59673387,84.81,84.767,10.38767885]
[1772190468909,2.59673387,84.81,84.774,10.6161]
[1772190469110,2.59673387,84.81,84.767,10.38767885]
[1772190469909,2.59673387,84.81,84.781,10.6151]
[1772190470414,10.45365197,84.799,84.759,10.6179]
[1772190471516,10.45365197,84.799,84.765,10.6172]
[1772190475918,10.45365197,84.799,84.758,10.618]
[1772190476215,10.45365197,84.799,84.759,10.38767885]
[1772190477519,10.45365197,84.799,84.775,10.6159]
[1772190477712,13.05038584,84.81,84.775,10.6159]
[1772190479025,10.6118,84.808,84.77,10.38767885]
[1772190479222,2.59673387,84.8,84.77,10.38767885]
[1772190481823,2.59673387,84.8,84.767,10.6169]
[1772190482023,2.59673387,84.78,84.731,10.38767885]
[1772190482928,2.59673387,84.78,84.745,10.6196]
[1772190483130,2.59673387,84.78,84.745,21.00727885]
[1772190483319,2.59673387,84.78,84.746,10.38767885]
[1772190484926,2.59673387,84.78,84.747,10.6195]
[1772190485821,10.615,84.783,84.75,10.6191]
[1772190488631,10.45365197,84.802,84.76,10.38767885]
[1772190488827,9.72773334,84.817,84.76,10.38767885]
[1772190488828,2.59673387,84.81,84.76,10.38767885]
[1772190489227,10.45365197,84.809,84.76,10.38767885]
[1772190489725,2.59673387,84.8,84.76,10.38767885]
[1772190489928,10.45365197,84.799,84.76,10.38767885]
[1772190491030,10.45365197,84.799,84.762,10.6176]
[1772190491628,10.45365197,84.799,84.74,2.59673387]
[1772190491629,13.20833387,84.81,84.765,10.82740846]
[1772190492432,10.612,84.807,84.765,21.44460846]
[1772190493828,10.79690072,84.806,84.765,21.44460846]
[1772190494136,10.79690072,84.804,84.765,21.44460846]
[1772190494529,2.59673387,84.81,84.772,10.82740846]
[1772190494731,10.79690072,84.818,84.772,10.82740846]
[1772190494937,316.10191342,84.852,84.772,10.82740846]
[1772190494938,2.59673387,84.82,84.772,10.82740846]
[1772190495529,13.39363459,84.83,84.772,10.82740846]
[1772190496036,13.39363459,84.83,84.789,10.82740846]
[1772190496232,10.79690072,84.851,84.789,10.82740846]
[1772190496439,10.79690072,84.851,84.78,2.59673387]
[1772190496440,284.38476242,84.852,84.821,10.6101]
[1772190496937,266.11896242,84.852,84.821,10.82740846]